bitfinex/quotes_SOLUSD_20220103
["timestamp","ask_amount","ask_price","bid_price","bid_amount"]
[1641233551150,77.8482,171.05,170.91,105.01]
[1641233551447,3.28832566,171.08,170.98,8.7692]
[1641233551650,1.2679,171.09,170.99,8.4]
[1641233551848,1.2679,171.09,171.0,2.49251477]
[1641233552048,1.2679,171.09,171.01,8.4]
[1641233552446,1.2679,171.09,171.01,8.66]
[1641233552848,1.2679,171.09,171.04,8.7681]
[1641233553048,3.00580562,171.1,171.05,2.5033203]
[1641233553251,169.7089,171.17,171.05,10.9033203]
[1641233553550,96.4191,171.17,171.05,11.1633203]
[1641233553748,2.7191,171.17,171.05,11.1633203]
[1641233553948,22.80092437,171.14,171.09,8.7663]
[1641233554349,22.80092437,171.14,171.09,0.26]
[1641233554549,22.80092437,171.14,171.05,8.4]
[1641233554750,22.80092437,171.14,171.05,0.26]
[1641233554954,28.76092437,171.14,171.05,0.26]
[1641233555348,2.25209781,171.13,171.04,8.7689]
[1641233555550,2.25209781,171.13,171.04,9.0289]
[1641233557250,2.25209781,171.13,171.04,8.7689]
[1641233557452,3.01209781,171.13,171.03,2.73752979]
[1641233558250,2.25209781,171.13,171.03,2.73752979]
[1641233558451,2.25209781,171.13,171.04,8.4]
[1641233558654,2.25209781,171.13,171.08,8.7664]
[1641233559053,2.25209781,171.13,171.08,9.0264]
[1641233561854,2.25209781,171.13,171.08,0.26]
[1641233562054,2.25209781,171.13,171.06,9.0275]
[1641233563356,2.51209781,171.13,171.06,0.26]
[1641233563555,2.51209781,171.13,171.02,8.66]
[1641233563757,9.47509781,171.13,171.02,0.26]
[1641233563957,34.32019781,171.13,170.98,29.2316]
[1641233564355,34.32019781,171.13,170.99,2.38028892]
[1641233564655,1.3032,171.12,170.99,2.38028892]
[1641233564856,10.0734,171.12,171.01,8.7704]
[1641233565055,10.3334,171.12,171.01,8.7704]
[1641233565355,10.8334,171.12,171.01,8.7704]
[1641233565555,10.8334,171.12,171.01,9.0304]
[1641233566054,10.8334,171.12,171.02,2.46450182]
[1641233566455,10.8334,171.12,171.02,2.72450182]
[1641233566657,10.3334,171.12,171.02,2.72450182]
[1641233567057,1.5632,171.12,171.02,11.49430182]
[1641233570665,1.5632,171.12,171.02,9.0298]
[1641233571864,10.8332,171.12,171.02,0.26]
[1641233572163,10.8332,171.12,171.0,11.77048405]
[1641233573675,10.8332,171.12,171.0,11.51048405]
[1641233574576,10.8332,171.12,171.0,8.7706]
[1641233574977,10.8332,171.12,171.0,0.26]
[1641233575177,8.7716,171.09,170.98,17.4316]
[1641233575593,2.85281142,171.08,170.98,17.1716]
[1641233575794,2.85281142,171.08,170.96,2.59426345]
[1641233575994,28.2806995,171.07,170.96,2.59426345]
[1641233576393,29.0406995,171.07,170.96,11.36696345]
[1641233576794,29.0406995,171.07,170.96,2.59426345]
[1641233576995,29.0406995,171.07,170.94,8.4]
[1641233577194,29.0406995,171.07,170.92,86.0447]
[1641233577395,24.6144,171.06,170.92,86.0447]
[1641233577595,24.8744,171.06,170.92,86.0447]
[1641233577794,25.3744,171.06,170.92,86.3047]
[1641233577994,2.25317283,171.05,170.93,2.24452473]
[1641233578194,2.25317283,171.05,170.94,8.7738]
[1641233578395,2.51317283,171.05,170.94,8.7738]
[1641233578595,2.51317283,171.05,170.94,9.0338]
[1641233578998,2.25317283,171.05,170.94,9.0338]
[1641233582199,2.51317283,171.05,170.94,9.0338]
[1641233582401,3.01317283,171.05,170.94,9.0338]
[1641233583106,3.01317283,171.05,170.94,8.7738]
[1641233583401,2.51317283,171.05,170.94,8.7738]
[1641233584001,11.28667283,171.05,170.94,8.7738]
[1641233584601,2.25317283,171.05,170.94,9.0338]
[1641233588809,2.25317283,171.05,170.94,17.4338]
[1641233596022,24.6144,171.06,170.94,17.4338]
[1641233597322,23.3165,171.06,170.94,17.4338]
[1641233597523,23.3165,171.06,170.94,18.86049368]
[1641233597524,2.12976876,171.05,170.94,18.86049368]
[1641233597823,23.3165,171.06,170.94,18.86049368]
[1641233600527,2.57065008,171.07,170.94,18.86049368]
[1641233601746,1.292,171.09,170.94,18.86049368]
[1641233601947,23.1935,171.11,171.03,8.7682]
[1641233602349,23.1935,171.11,171.03,9.0282]
[1641233602746,2.1949851,171.1,171.03,11.61207695]
[1641233603147,2.1949851,171.1,171.07,8.7669]
[1641233603348,1.2412,171.13,171.08,6.06439992]
[1641233603648,1.2412,171.13,171.08,6.32439992]
[1641233604247,24.207,171.14,171.08,6.32439992]
[1641233604447,2.90056655,171.13,171.08,15.09129992]
[1641233605048,2.90056655,171.13,171.08,6.32439992]
[1641233605250,2.90056655,171.13,171.04,37.623]
[1641233605450,2.90056655,171.13,171.04,37.883]
[1641233606048,4.13826655,171.13,171.04,37.883]
[1641233606548,4.13826655,171.13,171.07,8.7678]
[1641233606949,4.13826655,171.13,171.07,9.0278]
[1641233607949,4.39826655,171.13,171.05,8.7683]
[1641233608149,4.89826655,171.13,171.04,0.26]
[1641233608349,23.2611,171.12,171.04,0.26]
[1641233608549,23.5211,171.12,171.04,0.26]
[1641233608750,23.2611,171.12,171.03,3.29171042]
[1641233609152,23.2611,171.12,171.06,2.20688409]
[1641233609555,23.2611,171.12,171.06,2.46688409]
[1641233609956,23.2611,171.12,171.06,7.22988409]
[1641233610158,23.2611,171.12,171.06,15.99798409]
[1641233611657,2.55916694,171.13,171.06,15.99798409]
[1641233613563,1.3009,171.16,171.06,15.99798409]
[1641233614466,2.88097151,171.15,171.06,15.99798409]
[1641233614664,2.88097151,171.15,171.06,11.23498409]
[1641233614864,2.88097151,171.15,171.06,9.0281]
[1641233616166,2.88097151,171.15,171.07,2.82893845]
[1641233616367,2.88097151,171.15,171.09,8.7662]
[1641233616567,2.88097151,171.15,171.09,9.0262]
[1641233617771,2.88097151,171.15,171.09,8.7662]
[1641233618972,2.88097151,171.15,171.09,9.0262]
[1641233622298,2.88097151,171.15,171.09,8.7662]
[1641233623501,2.88097151,171.15,171.09,9.0262]
[1641233624101,2.88097151,171.15,171.09,0.26]
[1641233624302,2.88097151,171.15,171.07,11.85613845]
[1641233625100,2.88097151,171.15,171.07,9.0272]
[1641233625906,3.64097151,171.15,171.03,78.0003]
[1641233626309,3.64097151,171.15,171.03,80.527527]
[1641233626705,1.2939,171.14,171.03,80.527527]
[1641233626906,8.7695,171.13,171.03,80.527527]
[1641233627314,9.2695,171.13,171.03,80.527527]
[1641233628108,9.2695,171.13,171.03,80.787527]
[1641233628308,8.7695,171.13,171.03,80.787527]
[1641233628508,9.2695,171.13,171.04,8.769]
[1641233628706,0.5,171.13,171.04,8.769]
[1641233628906,0.5,171.13,171.04,9.029]
[1641233629108,35.6663,171.14,171.04,9.029]
[1641233637824,35.1663,171.14,171.04,9.029]
[1641233638026,35.6663,171.14,171.04,9.029]
[1641233640259,35.1663,171.14,171.04,9.029]
[1641233640458,35.6663,171.14,171.04,9.029]
[1641233641959,35.1663,171.14,171.04,9.029]
[1641233642966,35.6663,171.14,171.04,9.029]
[1641233643163,35.1663,171.14,171.04,9.029]
[1641233643365,35.6663,171.14,171.04,9.029]
[1641233644664,26.1377,171.14,171.04,9.029]
[1641233644865,26.1377,171.14,171.04,23.525]
[1641233654079,24.8438,171.14,171.04,23.525]
[1641233654278,2.88097151,171.15,171.04,23.525]
[1641233658284,2.88097151,171.15,171.04,17.429]
[1641233658884,1.3349,171.14,171.04,17.429]
[1641233660990,23.931,171.14,171.04,17.429]
[1641233664494,32.6992,171.14,171.04,17.429]
[1641233664696,32.6992,171.14,171.04,17.169]
[1641233665515,33.1992,171.14,171.04,17.169]
[1641233665917,32.6992,171.14,171.04,17.169]
[1641233666318,32.6992,171.14,171.04,17.429]
[1641233668418,33.4592,171.14,171.04,17.429]
[1641233669219,33.4592,171.14,171.04,9.029]
[1641233669719,33.4592,171.14,171.04,0.26]
[1641233669919,33.4592,171.14,171.03,86.7703]
[1641233670219,33.4592,171.14,171.03,9.03]
[1641233671120,33.4592,171.14,171.03,8.77]
[1641233671320,33.1992,171.14,171.02,8.7705]
[1641233672623,33.4592,171.14,171.02,8.7705]
[1641233672823,33.4592,171.14,171.02,9.0305]
[1641233676131,8.4,171.13,171.0,8.7712]
[1641233676328,8.7714,171.09,171.0,8.7712]
[1641233676527,24.32357916,171.08,171.0,8.7712]
[1641233676725,24.32357916,171.08,170.97,8.4]
[1641233676927,25.8431,171.07,170.97,8.4]
[1641233677126,2.22501274,171.06,170.97,10.77284215]
[1641233677327,2.22501274,171.06,170.98,8.7721]
[1641233677526,2.22501274,171.06,170.97,10.77284215]
[1641233678326,2.22501274,171.06,170.97,11.03284215]
[1641233678525,2.22501274,171.06,170.99,8.7721]
[1641233678924,2.22501274,171.06,170.99,9.0321]
[1641233681029,2.48501274,171.06,170.99,8.7721]
[1641233682329,2.48501274,171.06,170.99,9.0321]
[1641233682528,2.22501274,171.06,170.99,9.0321]
[1641233683829,2.48501274,171.06,170.99,9.0321]
[1641233684031,2.22501274,171.06,170.99,9.0321]
[1641233684632,2.48501274,171.06,170.99,9.0321]
[1641233685032,2.48501274,171.06,170.99,0.26]
[1641233685433,2.48501274,171.06,170.98,9.0325]
[1641233685832,12.48431274,171.06,170.98,9.0325]
[1641233686034,3.71171274,171.06,170.98,9.0325]
[1641233687232,3.45171274,171.06,170.98,9.0325]
[1641233692739,1.2267,171.06,170.98,9.0325]
[1641233693143,1.2267,171.06,170.98,17.4325]
[1641233695643,1.2267,171.06,170.98,9.0325]
[1641233696245,1.2267,171.06,170.98,8.7725]
[1641233696445,9.9993,171.06,170.98,8.7725]
[1641233697647,9.9993,171.06,170.98,9.0325]
[1641233699354,1.2267,171.06,170.98,9.0325]
[1641233704958,1.4867,171.06,170.98,8.7725]
[1641233705359,1.2267,171.06,170.98,8.7725]
[1641233705763,1.3381,171.1,170.98,17.1725]
[1641233705964,27.08,171.1,170.98,17.1725]
[1641233706164,29.96895429,171.1,170.98,17.1725]
[1641233706365,29.96895429,171.1,170.98,17.4325]
[1641233706569,2.88895429,171.1,170.99,1.3139]
[1641233706795,23.10717416,171.13,171.04,8.7692]
[1641233706993,23.10717416,171.13,171.04,9.0292]
[1641233707692,2.38996837,171.11,171.05,2.48573057]
[1641233707892,2.38996837,171.11,171.04,9.0292]
[1641233708192,3.64476837,171.11,171.04,0.26]
[1641233708592,3.64476837,171.11,171.01,1.5363]
[1641233708792,3.64476837,171.11,171.01,12.32450074]
[1641233708994,32.5603,171.1,171.01,12.32450074]
[1641233710292,1.326,171.09,171.02,8.7704]
[1641233710494,1.326,171.09,171.02,9.0304]
[1641233711394,1.326,171.09,171.02,8.7704]
[1641233711594,10.0968,171.09,171.01,12.06450074]
[1641233712795,10.0968,171.09,171.01,12.32450074]
[1641233712996,10.3568,171.09,171.01,1.2763]
[1641233713196,10.8568,171.09,170.98,8.4]
[1641233713395,8.7719,171.07,170.98,8.4]
[1641233713595,22.81936832,171.05,170.98,8.4]
[1641233713798,22.81936832,171.05,170.97,24.6993]
[1641233713999,25.5353842,171.05,170.97,24.6993]
[1641233714397,26.0353842,171.05,170.97,24.6993]
[1641233714796,25.5353842,171.05,170.97,24.6993]
[1641233715000,25.5353842,171.05,170.97,24.9593]
[1641233715401,34.3082842,171.05,170.97,33.7324]
[1641233720904,34.3082842,171.05,170.97,31.2324]
[1641233722009,25.5353842,171.05,170.97,31.2324]
[1641233723417,22.81936832,171.05,170.97,31.2324]
[1641233724712,25.58213198,171.05,170.97,31.2324]
[1641233725844,23.8518,171.06,170.97,31.2324]
[1641233726844,22.5999,171.06,170.97,31.2324]
[1641233727046,22.5999,171.06,170.98,8.4]
[1641233727346,2.50583449,171.09,170.98,8.4]
[1641233727543,2.50583449,171.09,170.98,8.66]
[1641233727744,2.50583449,171.09,170.98,8.4]
[1641233727947,11.77673449,171.09,170.98,8.4]
[1641233728146,31.12664942,171.08,170.98,9.705]
[1641233728345,31.62664942,171.08,170.98,18.4772]
[1641233728545,31.88664942,171.08,170.98,18.4772]
[1641233728745,24.0337,171.07,170.98,18.4772]
[1641233728946,24.5337,171.07,170.98,18.4772]
[1641233729145,24.7937,171.07,170.98,18.7372]
[1641233730458,33.5659,171.07,170.98,18.7372]
[1641233732551,33.5659,171.07,170.98,10.3372]
[1641233733653,33.5659,171.07,170.98,9.0322]
[1641233736255,33.5659,171.07,170.98,8.7722]
[1641233738058,33.5659,171.07,170.98,9.0322]
[1641233747362,33.3059,171.07,170.98,9.0322]
[1641233749164,33.5659,171.07,170.98,9.0322]
[1641233756805,33.5659,171.07,170.98,8.7722]
[1641233757007,33.5659,171.07,170.97,8.7731]
[1641233757206,33.5659,171.07,170.96,1.3341]
[1641233757803,33.5659,171.07,170.97,2.96605647]
[1641233758003,33.5659,171.07,170.97,3.22605647]
[1641233758205,33.5659,171.07,170.97,0.26]
[1641233758404,33.5659,171.07,170.96,0.26]
[1641233758603,33.5659,171.07,170.95,31.608]
[1641233758803,33.5659,171.07,170.95,22.5739]
[1641233759006,43.39259368,171.07,170.95,22.5739]
[1641233759207,43.39259368,171.07,170.92,2.43162409]
[1641233759405,8.7764,170.99,170.92,2.43162409]
[1641233759606,26.71010309,170.98,170.92,2.43162409]
[1641233760004,26.97010309,170.98,170.92,2.43162409]
[1641233761005,26.71010309,170.98,170.92,2.69162409]
[1641233762106,27.99790309,170.98,170.92,2.69162409]
[1641233762510,27.99790309,170.98,170.92,11.46732409]
[1641233764010,25.39775333,170.98,170.92,11.46732409]
[1641233764909,25.39775333,170.98,170.89,8.4]
[1641233765109,34.43435333,170.98,170.9,8.7764]
[1641233765309,40.86835333,170.98,170.9,8.7764]
[1641233765509,40.86835333,170.98,170.9,0.26]
[1641233765711,2.15999086,170.96,170.9,0.26]
[1641233766210,10.93749086,170.96,170.88,8.7773]
[1641233766410,12.28229086,170.96,170.88,8.7773]
[1641233767012,23.1714,170.95,170.88,8.7773]
[1641233767310,31.9497,170.95,170.87,101.42901158]
[1641233767510,31.9497,170.95,170.87,101.68901158]
[1641233768210,1.3626,170.94,170.87,101.68901158]
[1641233768611,10.1412,170.94,170.87,101.68901158]
[1641233769411,10.1412,170.94,170.87,100.37571158]
[1641233769816,10.1412,170.94,170.83,52.8584]
[1641233769817,10.1412,170.94,170.85,8.7792]
[1641233770013,8.7796,170.92,170.83,24.2741]
[1641233770213,25.48194238,170.91,170.83,24.2741]
[1641233770614,25.74194238,170.91,170.83,24.2741]
[1641233770814,27.08914238,170.91,170.83,24.2741]
[1641233771114,2.90840555,170.9,170.83,24.2741]
[1641233771417,11.68900555,170.9,170.83,33.3143]
[1641233771813,11.68900555,170.9,170.83,24.2741]
[1641233772015,11.94900555,170.9,170.82,79.61279829]
[1641233772515,12.44900555,170.9,170.82,79.61279829]
[1641233773416,12.39314537,170.9,170.82,79.61279829]
[1641233773618,12.39314537,170.9,170.82,78.30289829]
[1641233774116,12.39314537,170.9,170.82,78.56289829]
[1641233774922,25.8079,170.89,170.82,78.56289829]
[1641233775119,2.1975787,170.87,170.82,78.56289829]
[1641233775319,2.1975787,170.87,170.82,0.26]
[1641233775519,2.1975787,170.87,170.8,0.26]
[1641233775720,2.1975787,170.87,170.79,24.6525]
[1641233775921,2.9575787,170.87,170.79,24.6525]
[1641233776319,11.7399787,170.87,170.79,27.06048862]
[1641233776729,24.4368,170.86,170.79,27.06048862]
[1641233776922,24.4368,170.86,170.79,27.32048862]
[1641233777321,25.7724,170.86,170.79,26.08448862]
[1641233778248,34.5556,170.86,170.79,26.08448862]
[1641233779348,25.7724,170.86,170.79,34.86658862]
[1641233779549,1.3356,170.86,170.79,34.86658862]
[1641233779751,24.1064,170.9,170.79,34.86658862]
[1641233779949,24.6064,170.9,170.79,36.10958862]
[1641233781351,24.6064,170.9,170.79,44.50958862]
[1641233784353,24.1064,170.9,170.79,44.50958862]
[1641233787058,25.3983,170.9,170.79,44.50958862]
[1641233790661,25.3983,170.9,170.79,44.24958862]
[1641233790859,34.4391,170.9,170.79,44.24958862]
[1641233791260,34.9391,170.9,170.79,44.24958862]
[1641233791661,34.9391,170.9,170.79,35.84958862]
[1641233791867,34.9391,170.9,170.79,2.40798862]
[1641233795063,34.9391,170.9,170.79,2.66798862]
[1641233795569,34.9391,170.9,170.79,2.40798862]
[1641233797368,43.3391,170.9,170.79,2.40798862]
[1641233804304,43.0791,170.9,170.79,2.40798862]
[1641233804503,43.0791,170.9,170.79,2.66798862]
[1641233805604,42.5791,170.9,170.79,2.66798862]
[1641233805804,34.1791,170.9,170.79,11.45008862]
[1641233806005,34.4391,170.9,170.79,11.45008862]
[1641233806405,25.6583,170.9,170.79,11.45008862]
[1641233808207,25.6583,170.9,170.79,19.85008862]
[1641233808406,25.3983,170.9,170.79,19.85008862]
[1641233814719,25.3983,170.9,170.79,19.59008862]
[1641233816119,25.3983,170.9,170.79,19.85008862]
[1641233824859,25.6583,170.9,170.79,19.85008862]
[1641233826863,34.439,170.9,170.79,19.85008862]
[1641233829068,34.939,170.9,170.79,9.0421]
[1641233829269,34.939,170.9,170.79,0.26]
[1641233829469,34.939,170.9,170.77,78.7296]
[1641233829666,8.4,170.89,170.77,78.7296]
[1641233829867,8.7836,170.85,170.77,78.7296]
[1641233830067,26.65921847,170.84,170.77,78.7296]
[1641233830270,28.95455033,170.84,170.78,3.05519332]
[1641233830467,29.21455033,170.84,170.78,3.05519332]
[1641233830671,30.53555033,170.84,170.78,3.05519332]
[1641233831270,28.24021847,170.84,170.78,3.05519332]
[1641233832269,28.24021847,170.84,170.78,11.83809332]
[1641233834476,2.31834784,170.83,170.78,8.7829]
[1641233834674,2.31834784,170.83,170.77,87.5129]
[1641233834877,2.31834784,170.83,170.77,87.7729]
[1641233835675,28.24021847,170.84,170.77,90.33759238]
[1641233836775,30.48849575,170.84,170.77,90.33759238]
[1641233838679,21.75849575,170.84,170.77,90.33759238]
[1641233839380,81.55429238,170.77,170.7,11.69945034]
[1641233839680,81.55429238,170.77,170.65,510.97177256]
[1641233839681,81.55429238,170.77,170.66,77.8235]
[1641233839879,81.81429238,170.77,170.66,77.8235]
[1641233840382,2.33856897,170.76,170.67,2.99201116]
[1641233840581,2.33856897,170.76,170.67,11.78011116]
[1641233840582,32.02085921,170.75,170.67,11.78011116]
[1641233840979,32.02085921,170.75,170.67,12.04011116]
[1641233841380,32.02085921,170.75,170.67,11.78011116]
[1641233843781,35.27216897,170.76,170.67,11.78011116]
[1641233843983,24.1467,170.76,170.67,11.78011116]
[1641233844582,22.9089,170.76,170.67,11.78011116]
[1641233844783,22.9089,170.76,170.67,20.44011116]
[1641233844984,81.55429238,170.77,170.67,20.44011116]
[1641233846685,81.55429238,170.77,170.67,21.86680484]
[1641233849717,81.55429238,170.77,170.67,31.45417261]
[1641233850018,81.55429238,170.77,170.67,136.46417261]
[1641233850418,12.89839238,170.77,170.67,136.46417261]
[1641233851519,12.89839238,170.77,170.67,141.76926261]
[1641233851921,12.89839238,170.77,170.7,2.27180933]
[1641233852120,12.89839238,170.77,170.74,2.16317139]
[1641233852321,12.89839238,170.77,170.75,14.46439992]
[1641233852521,12.89839238,170.77,170.75,14.72439992]
[1641233853524,0.00839238,170.77,170.75,14.72439992]
[1641233853721,0.00839238,170.77,170.76,8.7808]
[1641233853922,0.00839238,170.77,170.76,138.6333]
[1641233854121,0.00839238,170.77,170.76,138.8933]
[1641233855325,0.00839238,170.77,170.76,89.8933]
[1641233861833,0.00839238,170.77,170.76,89.6333]
[1641233862235,0.00839238,170.77,170.76,81.2333]
[1641233863033,0.00839238,170.77,170.76,81.4933]
[1641233864536,0.00839238,170.77,170.76,89.8933]
[1641233880084,0.00839238,170.77,170.76,89.6333]
[1641233881583,0.00839238,170.77,170.76,89.8933]
[1641233890607,0.00839238,170.77,170.76,17.1808]
[1641233891910,0.00839238,170.77,170.76,17.4408]
[1641233894732,0.00839238,170.77,170.76,20.47299995]
[1641233894931,0.00839238,170.77,170.76,23.50519992]
[1641233901045,0.00839238,170.77,170.76,23.24519992]
[1641233902549,0.00839238,170.77,170.76,23.50519992]
[1641233907049,1.2933,170.84,170.76,23.50519992]
[1641233907653,1.2933,170.84,170.77,2.7031918]
[1641233907851,1.2933,170.84,170.8,8.7793]
[1641233908151,1.2933,170.84,170.81,2.31813986]
[1641233908555,24.4102,170.86,170.81,2.57813986]
[1641233908751,24.4102,170.86,170.83,8.7792]
[1641233909151,24.4102,170.86,170.83,9.0392]
[1641233913860,77.6928,170.91,170.84,14.46439992]
[1641233914058,1.2526,170.91,170.87,8.7776]
[1641233914459,1.2526,170.91,170.87,9.0376]
[1641233914657,1.2526,170.91,170.88,8.4]
[1641233914858,1.61190295,170.93,170.89,2.42898596]
[1641233915057,1.61190295,170.93,170.89,11.08898596]
[1641233915460,26.62864037,170.95,170.89,19.86488596]
[1641233916063,27.89434037,170.95,170.89,19.86488596]
[1641233916961,27.89434037,170.95,170.89,17.4359]
[1641233918161,27.89434037,170.95,170.89,20.23635729]
[1641233920166,24.9309,170.95,170.89,20.23635729]
[1641233921467,17.6309,170.95,170.89,20.23635729]
[1641233929809,17.6309,170.95,170.89,17.4359]
[1641233930010,45.18738129,170.95,170.89,17.4359]
[1641233931215,45.18738129,170.95,170.89,9.0359]
[1641233932516,45.18738129,170.95,170.89,17.4359]
[1641233933313,45.18738129,170.95,170.89,17.1759]
[1641233934313,45.18738129,170.95,170.89,8.7759]
[1641233934515,45.18738129,170.95,170.89,9.0359]
[1641233935414,44.88738129,170.95,170.89,9.0359]
[1641233939219,44.88738129,170.95,170.83,29.2585]
[1641233939422,44.88738129,170.95,170.86,0.26]
[1641233939625,45.38738129,170.95,170.86,0.26]
[1641233940020,54.42518129,170.95,170.81,8.4]
[1641233940720,1.61190295,170.94,170.81,8.4]
[1641233940919,2.11190295,170.94,170.84,8.7797]
[1641233941121,8.7801,170.91,170.84,8.7797]
[1641233941320,30.02752241,170.9,170.84,9.0397]
[1641233942420,31.37312241,170.9,170.84,9.0397]
[1641233948328,1.3456,170.9,170.84,9.0397]
[1641233948932,1.61190295,170.93,170.84,17.4397]
[1641233950139,2.35723438,170.95,170.84,17.4397]
[1641233953542,1.2507,170.94,170.84,17.4397]
[1641233960964,23.8005,170.95,170.84,17.4397]
[1641233961166,23.8005,170.95,170.84,24.38139368]
[1641233961365,1.2647,170.96,170.84,25.67289368]
[1641233961570,25.4173,170.97,170.85,24.5038]
[1641233961767,23.1319,171.0,170.85,24.5038]
[1641233961768,23.1319,171.0,170.91,8.7742]
[1641233961965,28.72154293,170.99,170.92,2.96406438]
[1641233962365,28.72154293,170.99,170.92,3.22406438]
[1641233962765,28.72154293,170.99,170.95,8.7737]
[1641233962965,28.72154293,170.99,170.95,9.0337]
[1641233963567,2.97864293,170.99,170.95,9.0337]
[1641233963767,30.6271495,171.03,170.95,9.0337]
[1641233963966,24.2422,171.03,170.95,9.0337]
[1641233964568,24.2422,171.03,170.95,14.0797]
[1641233964769,24.2422,171.03,170.96,8.4]
[1641233964968,24.2422,171.03,170.99,11.61094022]
[1641233965169,1.357,171.03,170.99,11.61094022]
[1641233965368,1.357,171.03,170.99,11.87094022]
[1641233965867,1.3641,171.04,170.99,11.87094022]
[1641233966471,2.51179176,171.05,170.99,11.87094022]
[1641233966668,2.51179176,171.05,170.99,9.031]
[1641233966867,33.02640087,171.05,170.99,9.031]
[1641233968567,2.51179176,171.05,170.99,9.031]
[1641233972982,2.51179176,171.05,170.99,0.26]
[1641233973384,2.51179176,171.05,170.97,0.26]
[1641233973585,1.3267,171.04,170.95,31.64839045]
[1641233973981,1.3267,171.04,170.95,2.40979045]
[1641233974185,25.0404,171.04,170.95,2.40979045]
[1641233974386,25.0404,171.04,170.95,0.26]
[1641233974585,25.0404,171.04,170.93,8.66]
[1641233975087,25.0404,171.04,170.96,8.7729]
[1641233975488,25.0404,171.04,170.96,9.0329]
[1641233978704,25.5404,171.04,170.96,9.0329]
[1641233979503,25.0404,171.04,170.96,9.0329]
[1641233982023,25.0404,171.04,170.97,8.4]
[1641233982221,25.0404,171.04,170.99,8.7716]
[1641233982621,25.0404,171.04,170.99,9.0316]
[1641233983522,25.0404,171.04,170.95,29.2388]
[1641233983725,25.0404,171.04,170.97,8.7724]
[1641233984422,25.0404,171.04,170.94,23.4662]
[1641233984623,25.3004,171.04,170.93,3.05796769]
[1641233984824,34.2004,171.04,170.89,8.9313]
[1641233985022,34.2004,171.04,170.88,102.7697]
[1641233985223,42.9738,171.04,170.89,37.6477]
[1641233985624,42.7138,171.04,170.92,8.775]
[1641233985824,42.7138,171.04,170.93,3.05400158]
[1641233986023,42.2138,171.04,170.93,3.31400158]
[1641233987425,42.2138,171.04,170.93,12.08880158]
[1641233991429,42.7138,171.04,170.93,12.08880158]
[1641233992831,42.9738,171.04,170.93,12.08880158]
[1641233993334,42.9738,171.04,170.88,77.7725]
[1641233993534,8.7769,170.98,170.88,77.7725]
[1641233993732,23.38341825,170.97,170.88,77.7725]
[1641233994534,23.38341825,170.97,170.88,78.0325]
[1641233994735,23.38341825,170.97,170.89,3.02848643]
[1641233995236,32.16031825,170.97,170.89,12.06538643]
[1641233995934,32.16031825,170.97,170.89,11.80538643]
[1641233996537,32.16031825,170.97,170.89,3.02848643]
[1641233997339,32.16031825,170.97,170.89,3.28848643]
[1641234000147,8.7769,170.97,170.89,3.28848643]
[1641234000345,10.115,170.98,170.89,12.06548643]
[1641234000550,1.3387,170.98,170.89,12.06548643]
[1641234001145,23.2977,170.99,170.9,8.4]
[1641234001344,23.2977,170.99,170.94,8.7735]
[1641234001546,25.8154,171.01,170.94,16.1645]
[1641234001745,3.05221264,171.0,170.94,16.1645]
[1641234003348,3.05221264,171.0,170.95,2.64252431]
[1641234003650,3.05221264,171.0,170.96,8.7733]
[1641234003849,24.5144,171.01,170.96,8.7733]
[1641234004049,1.3551,171.01,170.96,9.0333]
[1641234007351,23.7053,171.03,170.96,9.0333]
[1641234010158,2.14412564,171.02,170.96,9.0333]
[1641234011258,23.7053,171.03,170.96,9.0333]
[1641234017291,23.7053,171.03,170.97,2.21166084]
[1641234017495,23.7053,171.03,170.97,2.47166084]
[1641234017691,23.7053,171.03,170.98,8.7721]
[1641234018195,23.7053,171.03,170.98,9.0321]
[1641234018793,3.53706875,171.04,170.98,9.0321]
[1641234019396,2.28886875,171.04,170.98,9.0321]
[1641234021104,2.28886875,171.04,170.98,8.7721]
[1641234022405,25.6098,171.07,170.98,9.0321]
[1641234023504,2.21361161,171.06,170.98,9.0321]
[1641234026409,2.21361161,171.06,170.99,8.4]